[Event "2026 European Womens Championship"]
[Site "Batumi, GE"]
[Date "2026.05.28"]
[Round "4"]
[White "Peglau, Charis"]
[Black "Vega Gutierrez, Sabrina"]
[Result "0-1"]
[Board "19"]
[TimeControl "5400+30"]
[WhiteFideId "16219996"]
[BlackFideId "2219026"]
[WhiteElo "2238"]
[BlackElo "2375"]
[WhiteTitle "WFM"]
[BlackTitle "IM"]
[WhiteClock "0:01:58"]
[BlackClock "0:20:20"]
[Variant "Standard"]

1. d4 {[%clk 1:30:57]}  d5 {[%clk 1:30:49]} 2. Nf3 {[%clk 1:31:18]}  Nf6 {[%clk 1:30:09]} 3. Bf4 {[%clk 1:31:22]}  e6 {[%clk 1:30:15]}
4. e3 {[%clk 1:31:36]}  Bd6 {[%clk 1:30:11]} 5. Bg3 {[%clk 1:31:17]}  b6 {[%clk 1:26:45]} 6. Bd3 {[%clk 1:30:24]}  O-O {[%clk 1:26:53]}
7. O-O {[%clk 1:30:12]}  c5 {[%clk 1:22:11]} 8. c3 {[%clk 1:23:26]}  Bxg3 {[%clk 1:10:43]} 9. hxg3 {[%clk 1:23:49]}  Ba6 {[%clk 1:11:05]}
10. Bxa6 {[%clk 1:18:59]}  Nxa6 {[%clk 1:11:32]} 11. Nbd2 {[%clk 1:19:12]}  b5 {[%clk 1:09:30]} 12. Qe2 {[%clk 1:17:05]}  c4 {[%clk 0:47:36]}
13. e4 {[%clk 1:13:55]}  b4 {[%clk 0:47:21]} 14. exd5 {[%clk 1:06:20]}  exd5 {[%clk 0:41:43]} 15. Ne5 {[%clk 1:06:18]}  Qd6 {[%clk 0:37:59]}
16. Rfe1 {[%clk 0:59:30]}  Nc7 {[%clk 0:37:17]} 17. g4 {[%clk 0:46:10]}  Rae8 {[%clk 0:35:36]} 18. Qf3 {[%clk 0:44:55]}  bxc3 {[%clk 0:34:30]}
19. bxc3 {[%clk 0:45:09]}  Nd7 {[%clk 0:34:33]} 20. Qf5 {[%clk 0:21:59]}  Nxe5 {[%clk 0:32:34]} 21. dxe5 {[%clk 0:22:15]}  Qa3 {[%clk 0:32:25]}
22. Re3 {[%clk 0:21:52]}  f6 {[%clk 0:29:17]} 23. exf6 {[%clk 0:12:53]}  Rxe3 {[%clk 0:28:05]} 24. fxe3 {[%clk 0:13:21]}  Qxc3 {[%clk 0:25:34]}
25. Rd1 {[%clk 0:03:47]}  Qxe3+ {[%clk 0:25:47]} 26. Qf2 {[%clk 0:01:08]}  Qxf2+ {[%clk 0:23:59]} 27. Kxf2 {[%clk 0:01:37]}  Rxf6+ {[%clk 0:24:17]}
28. Ke3 {[%clk 0:02:01]}  Ra6 {[%clk 0:21:36]} 29. Rb1 {[%clk 0:01:43]}  Ne6 {[%clk 0:21:24]} 30. Rb5 {[%clk 0:01:31]}  Ra3+ {[%clk 0:21:35]}
31. Kf2 {[%clk 0:01:09]}  Rxa2 {[%clk 0:21:06]} 32. Ke1 {[%clk 0:01:36]}  c3 {[%clk 0:20:53]} 33. Nb3 {[%clk 0:01:58]}  Rb2 {[%clk 0:20:20]} 0-1

[Event "2026 European Womens Championship"]
[Site "Batumi, GE"]
[Date "2026.05.28"]
[Round "4"]
[White "Atalik, Ekaterina"]
[Black "Kochavi, Dana"]
[Result "1-0"]
[Board "20"]
[TimeControl "5400+30"]
[WhiteFideId "4130189"]
[BlackFideId "2837137"]
[WhiteElo "2372"]
[BlackElo "2209"]
[WhiteTitle "IM"]
[BlackTitle "FM"]
[WhiteClock "0:01:58"]
[BlackClock "0:05:46"]
[Variant "Standard"]

1. d4 {[%clk 1:30:53]}  Nf6 {[%clk 1:30:51]} 2. c4 {[%clk 1:31:09]}  e6 {[%clk 1:31:15]} 3. Nf3 {[%clk 1:31:17]}  d5 {[%clk 1:31:38]}
4. Nc3 {[%clk 1:31:15]}  dxc4 {[%clk 1:32:01]} 5. e3 {[%clk 1:30:51]}  a6 {[%clk 1:32:25]} 6. Bxc4 {[%clk 1:29:48]}  b5 {[%clk 1:32:50]}
7. Bd3 {[%clk 1:26:37]}  Bb7 {[%clk 1:33:08]} 8. O-O {[%clk 1:26:02]}  c5 {[%clk 1:33:07]} 9. Qe2 {[%clk 1:25:10]}  Nbd7 {[%clk 1:33:28]}
10. Rd1 {[%clk 1:20:45]}  Bd6 {[%clk 1:29:06]} 11. e4 {[%clk 1:11:10]}  cxd4 {[%clk 1:26:53]} 12. Nxd4 {[%clk 1:10:44]}  Qb8 {[%clk 1:26:09]}
13. Nf3 {[%clk 1:04:08]}  h6 {[%clk 1:21:57]} 14. Bc2 {[%clk 0:56:40]}  O-O {[%clk 1:18:42]} 15. a3 {[%clk 0:49:34]}  Rd8 {[%clk 1:10:58]}
16. h3 {[%clk 0:44:18]}  Qc7 {[%clk 1:06:38]} 17. Be3 {[%clk 0:40:36]}  Rac8 {[%clk 1:02:17]} 18. Rac1 {[%clk 0:34:50]}  Qb8 {[%clk 1:01:59]}
19. Bb1 {[%clk 0:33:56]}  Bf8 {[%clk 0:54:45]} 20. Bd4 {[%clk 0:30:12]}  Bc5 {[%clk 0:52:19]} 21. Bxc5 {[%clk 0:27:34]}  Nxc5 {[%clk 0:50:00]}
22. Rxd8+ {[%clk 0:27:19]}  Rxd8 {[%clk 0:50:21]} 23. Qe3 {[%clk 0:23:13]}  Nb3 {[%clk 0:48:09]} 24. Re1 {[%clk 0:22:51]}  Na5 {[%clk 0:47:39]}
25. Ba2 {[%clk 0:21:18]}  Qc7 {[%clk 0:44:08]} 26. Rc1 {[%clk 0:18:39]}  Nc4 {[%clk 0:40:41]} 27. Bxc4 {[%clk 0:18:00]}  Qxc4 {[%clk 0:40:52]}
28. Qb6 {[%clk 0:16:27]}  Qc8 {[%clk 0:41:17]} 29. Qe3 {[%clk 0:14:22]}  Qc4 {[%clk 0:39:28]} 30. Nd2 {[%clk 0:10:00]}  Qd3 {[%clk 0:30:26]}
31. Qxd3 {[%clk 0:10:24]}  Rxd3 {[%clk 0:30:53]} 32. Rc2 {[%clk 0:10:46]}  a5 {[%clk 0:31:09]} 33. f3 {[%clk 0:08:20]}  b4 {[%clk 0:31:31]}
34. axb4 {[%clk 0:08:40]}  axb4 {[%clk 0:31:56]} 35. Ncb1 {[%clk 0:08:57]}  Rd4 {[%clk 0:30:09]} 36. Kf2 {[%clk 0:08:04]}  Ba6 {[%clk 0:30:04]}
37. Nb3 {[%clk 0:05:26]}  Rd1 {[%clk 0:30:06]} 38. Rc1 {[%clk 0:04:49]}  Rxc1 {[%clk 0:28:00]} 39. Nxc1 {[%clk 0:05:15]}  Nd7 {[%clk 0:28:26]}
40. Nd2 {[%clk 0:03:05]}  Kf8 {[%clk 0:28:00]} 41. Na2 {[%clk 0:02:48]}  Ke7 {[%clk 0:26:12]} 42. Nxb4 {[%clk 0:03:08]}  Bb5 {[%clk 0:26:37]}
43. Ke3 {[%clk 0:01:53]}  Kd6 {[%clk 0:26:31]} 44. Kd4 {[%clk 0:01:01]}  e5+ {[%clk 0:25:48]} 45. Kc3 {[%clk 0:29:02]}  Nb6 {[%clk 0:55:55]}
46. b3 {[%clk 0:25:42]}  Be2 {[%clk 0:49:49]} 47. Nc2 {[%clk 0:24:21]}  Nd7 {[%clk 0:39:37]} 48. Ne3 {[%clk 0:24:12]}  g6 {[%clk 0:39:57]}
49. Ndc4+ {[%clk 0:23:50]}  Kc6 {[%clk 0:40:08]} 50. Ng4 {[%clk 0:21:44]}  f6 {[%clk 0:37:52]} 51. Nxh6 {[%clk 0:20:25]}  Bf1 {[%clk 0:26:14]}
52. Ne3 {[%clk 0:20:48]}  Ba6 {[%clk 0:26:28]} 53. Nhg4 {[%clk 0:20:40]}  Kd6 {[%clk 0:26:29]} 54. b4 {[%clk 0:16:00]}  Bb5 {[%clk 0:21:58]}
55. Nd5 {[%clk 0:12:10]}  f5 {[%clk 0:21:47]} 56. Nge3 {[%clk 0:12:31]}  Be2 {[%clk 0:21:37]} 57. Kd2 {[%clk 0:08:38]}  Ba6 {[%clk 0:21:38]}
58. exf5 {[%clk 0:04:54]}  gxf5 {[%clk 0:22:01]} 59. Nc3 {[%clk 0:05:07]}  f4 {[%clk 0:21:06]} 60. Ne4+ {[%clk 0:05:07]}  Kc6 {[%clk 0:19:28]}
61. Nf5 {[%clk 0:04:54]}  Bf1 {[%clk 0:17:56]} 62. Nh4 {[%clk 0:05:11]}  Nb6 {[%clk 0:17:03]} 63. Ke1 {[%clk 0:04:25]}  Bd3 {[%clk 0:15:27]}
64. Kd2 {[%clk 0:03:18]}  Bf1 {[%clk 0:15:51]} 65. Nc3 {[%clk 0:03:00]}  Nc4+ {[%clk 0:15:48]} 66. Ke1 {[%clk 0:03:25]}  Bd3 {[%clk 0:16:08]}
67. Kf2 {[%clk 0:03:31]}  Bh7 {[%clk 0:15:08]} 68. g4 {[%clk 0:02:47]}  fxg3+ {[%clk 0:15:31]} 69. Kxg3 {[%clk 0:03:13]}  Ne3 {[%clk 0:13:36]}
70. Ng2 {[%clk 0:02:40]}  Nc2 {[%clk 0:13:32]} 71. b5+ {[%clk 0:02:53]}  Kb6 {[%clk 0:13:33]} 72. Kg4 {[%clk 0:02:44]}  Nd4 {[%clk 0:13:57]}
73. Ne3 {[%clk 0:02:47]}  Kc5 {[%clk 0:13:57]} 74. h4 {[%clk 0:02:55]}  Kb4 {[%clk 0:12:33]} 75. Ned5+ {[%clk 0:03:17]}  Kc5 {[%clk 0:12:41]}
76. h5 {[%clk 0:01:59]}  Bf5+ {[%clk 0:11:33]} 77. Kg3 {[%clk 0:01:32]}  Nxb5 {[%clk 0:10:41]} 78. Nxb5 {[%clk 0:01:50]}  Kxd5 {[%clk 0:11:06]}
79. Nc3+ {[%clk 0:02:10]}  Ke6 {[%clk 0:11:29]} 80. Ne4 {[%clk 0:02:15]}  Ke7 {[%clk 0:10:36]} 81. Kh4 {[%clk 0:02:40]}  Kf8 {[%clk 0:10:34]}
82. Kg5 {[%clk 0:03:06]}  Bh3 {[%clk 0:08:46]} 83. Kf6 {[%clk 0:03:06]}  Bg2 {[%clk 0:08:50]} 84. Ng5 {[%clk 0:03:28]}  Kg8 {[%clk 0:09:08]}
85. h6 {[%clk 0:02:18]}  Bxf3 {[%clk 0:04:27]} 86. Nxf3 {[%clk 0:02:44]}  Kh7 {[%clk 0:04:53]} 87. Kg5 {[%clk 0:03:11]}  e4 {[%clk 0:05:20]}
88. Nd4 {[%clk 0:03:23]}  e3 {[%clk 0:05:45]} 89. Kh5 {[%clk 0:03:50]}  Kg8 {[%clk 0:04:43]} 90. Kg6 {[%clk 0:04:04]}  Kh8 {[%clk 0:05:00]}
91. Ne2 {[%clk 0:03:37]}  Kg8 {[%clk 0:05:21]} 92. Nf4 {[%clk 0:01:44]}  Kh8 {[%clk 0:05:46]} 93. h7 {[%clk 0:01:58]} 1-0

[Event "2026 European Womens Championship"]
[Site "Batumi, GE"]
[Date "2026.05.28"]
[Round "4"]
[White "Beydullayeva, Govhar"]
[Black "Ibrahimova, Sabina"]
[Result "1/2-1/2"]
[Board "21"]
[TimeControl "5400+30"]
[WhiteFideId "13413015"]
[BlackFideId "13403893"]
[WhiteElo "2368"]
[BlackElo "2205"]
[WhiteTitle "WGM"]
[BlackTitle "WIM"]
[WhiteClock "0:01:34"]
[BlackClock "0:01:10"]
[Variant "Standard"]

1. d4 {[%clk 1:30:57]}  d5 {[%clk 1:22:07]} 2. c4 {[%clk 1:31:21]}  e6 {[%clk 1:22:12]} 3. Nc3 {[%clk 1:31:44]}  h6 {[%clk 1:22:12]}
4. Bf4 {[%clk 1:28:29]}  Bd6 {[%clk 1:21:52]} 5. Bxd6 {[%clk 1:26:25]}  Qxd6 {[%clk 1:19:52]} 6. e3 {[%clk 1:26:06]}  Nf6 {[%clk 1:19:36]}
7. cxd5 {[%clk 1:21:19]}  exd5 {[%clk 1:00:11]} 8. Bd3 {[%clk 1:21:11]}  Nc6 {[%clk 0:55:24]} 9. Nge2 {[%clk 1:14:45]}  Ne7 {[%clk 0:55:29]}
10. Qc2 {[%clk 1:11:54]}  c6 {[%clk 0:49:50]} 11. f3 {[%clk 1:08:51]}  O-O {[%clk 0:44:39]} 12. h3 {[%clk 1:05:22]}  c5 {[%clk 0:34:53]}
13. dxc5 {[%clk 0:43:39]}  Qxc5 {[%clk 0:33:01]} 14. Kf2 {[%clk 0:43:21]}  Nc6 {[%clk 0:31:17]} 15. Na4 {[%clk 0:39:09]}  Qd6 {[%clk 0:27:47]}
16. Qc5 {[%clk 0:37:56]}  Qe5 {[%clk 0:23:38]} 17. Qc3 {[%clk 0:36:07]}  Bd7 {[%clk 0:17:40]} 18. Nc5 {[%clk 0:32:29]}  Qxc3 {[%clk 0:16:48]}
19. Nxc3 {[%clk 0:28:02]}  d4 {[%clk 0:16:56]} 20. exd4 {[%clk 0:26:52]}  Nxd4 {[%clk 0:16:33]} 21. Nxd7 {[%clk 0:25:21]}  Nxd7 {[%clk 0:16:55]}
22. Rad1 {[%clk 0:23:22]}  Ne5 {[%clk 0:13:03]} 23. Be4 {[%clk 0:23:12]}  Nec6 {[%clk 0:13:13]} 24. Rd2 {[%clk 0:22:46]}  Rac8 {[%clk 0:10:09]}
25. Rhd1 {[%clk 0:22:00]}  Rfd8 {[%clk 0:08:01]} 26. Bd5 {[%clk 0:18:56]}  Nf5 {[%clk 0:05:52]} 27. Be4 {[%clk 0:10:56]}  Nfd4 {[%clk 0:04:16]}
28. Bd5 {[%clk 0:10:48]}  Nf5 {[%clk 0:04:36]} 29. Ne4 {[%clk 0:10:58]}  Nfe7 {[%clk 0:03:10]} 30. Bb3 {[%clk 0:09:39]}  Rxd2+ {[%clk 0:01:18]}
31. Rxd2 {[%clk 0:10:07]}  Na5 {[%clk 0:01:29]} 32. Bd1 {[%clk 0:07:51]}  Rc7 {[%clk 0:00:54]} 33. Rd8+ {[%clk 0:08:13]}  Kh7 {[%clk 0:01:18]}
34. Be2 {[%clk 0:03:32]}  Nac6 {[%clk 0:01:19]} 35. Rd2 {[%clk 0:03:29]}  Ng6 {[%clk 0:00:59]} 36. g3 {[%clk 0:02:57]}  Nf8 {[%clk 0:01:01]}
37. Bd3 {[%clk 0:02:12]}  Kg8 {[%clk 0:00:57]} 38. Bc4 {[%clk 0:01:34]}  Rd7 {[%clk 0:00:42]} 39. Rxd7 {[%clk 0:01:35]}  Nxd7 {[%clk 0:01:08]}
40. Nd6 {[%clk 0:01:15]}  Nd8 {[%clk 0:00:46]} 41. Bd5 {[%clk 0:25:05]}  b6 {[%clk 0:23:40]} 42. Nc8 {[%clk 0:23:49]}  a6 {[%clk 0:23:15]}
43. Ke3 {[%clk 0:23:53]}  Kf8 {[%clk 0:19:29]} 44. f4 {[%clk 0:23:56]}  Ke8 {[%clk 0:15:33]} 45. f5 {[%clk 0:23:20]}  b5 {[%clk 0:12:33]}
46. Kd4 {[%clk 0:23:32]}  Nf6 {[%clk 0:11:19]} 47. Nd6+ {[%clk 0:15:58]}  Ke7 {[%clk 0:09:47]} 48. Ne4 {[%clk 0:09:59]}  Nxe4 {[%clk 0:09:44]}
49. Kxe4 {[%clk 0:09:39]}  f6 {[%clk 0:05:09]} 50. b4 {[%clk 0:06:27]}  Kd6 {[%clk 0:05:30]} 51. a3 {[%clk 0:06:34]}  Nc6 {[%clk 0:01:51]}
52. h4 {[%clk 0:06:49]}  Nd8 {[%clk 0:01:05]} 53. Ba8 {[%clk 0:07:08]}  Nc6 {[%clk 0:00:50]} 54. Bb7 {[%clk 0:06:41]}  Nb8 {[%clk 0:00:48]}
55. g4 {[%clk 0:03:00]}  Kc7 {[%clk 0:00:56]} 56. Ba8 {[%clk 0:03:14]}  Kd6 {[%clk 0:00:58]} 57. Kf4 {[%clk 0:02:53]}  Nc6 {[%clk 0:00:50]}
58. Bb7 {[%clk 0:02:58]}  Kc7 {[%clk 0:00:47]} 59. Bxc6 {[%clk 0:00:41]}  Kxc6 {[%clk 0:01:12]} 60. Ke4 {[%clk 0:01:05]}  Kd6 {[%clk 0:01:34]}
61. h5 {[%clk 0:01:10]} 1/2-1/2

[Event "2026 European Womens Championship"]
[Site "Batumi, GE"]
[Date "2026.05.28"]
[Round "4"]
[White "Kirtadze, Anastasia"]
[Black "Mkrtchian, Lilit"]
[Result "1/2-1/2"]
[Board "22"]
[TimeControl "5400+30"]
[WhiteFideId "13622714"]
[BlackFideId "13300601"]
[WhiteElo "2233"]
[BlackElo "2366"]
[WhiteTitle "WIM"]
[BlackTitle "IM"]
[WhiteClock "0:50:03"]
[BlackClock "1:26:29"]
[Variant "Standard"]

1. e4 {[%clk 1:30:57]}  e6 {[%clk 1:30:22]} 2. d4 {[%clk 1:31:23]}  d5 {[%clk 1:30:47]} 3. Nc3 {[%clk 1:31:49]}  Nf6 {[%clk 1:30:19]}
4. Bg5 {[%clk 1:31:24]}  dxe4 {[%clk 1:30:04]} 5. Nxe4 {[%clk 1:29:58]}  Nbd7 {[%clk 1:30:13]} 6. Nf3 {[%clk 1:26:49]}  h6 {[%clk 1:30:21]}
7. Nxf6+ {[%clk 1:24:10]}  Nxf6 {[%clk 1:30:35]} 8. Be3 {[%clk 1:21:46]}  Bd7 {[%clk 1:30:43]} 9. Ne5 {[%clk 1:17:46]}  Ba4 {[%clk 1:31:04]}
10. Qd3 {[%clk 1:11:57]}  Nd7 {[%clk 1:29:32]} 11. Qc4 {[%clk 1:04:43]}  Nb6 {[%clk 1:27:53]} 12. Qd3 {[%clk 1:04:31]}  Nd7 {[%clk 1:24:02]}
13. Qc4 {[%clk 1:01:18]}  Nb6 {[%clk 1:28:34]} 14. Qd3 {[%clk 0:50:03]}  Nd7 {[%clk 1:26:29]} 15. Qd1 {[%clk 0:48:53]} 1/2-1/2

[Event "2026 European Womens Championship"]
[Site "Batumi, GE"]
[Date "2026.05.28"]
[Round "4"]
[White "Mkrtchyan, Mariam"]
[Black "Rudzinska, Michalina"]
[Result "1/2-1/2"]
[Board "23"]
[TimeControl "5400+30"]
[WhiteFideId "13310828"]
[BlackFideId "1172883"]
[WhiteElo "2365"]
[BlackElo "2200"]
[WhiteTitle "WGM"]
[BlackTitle "WGM"]
[WhiteClock "0:08:14"]
[BlackClock "0:11:31"]
[Variant "Standard"]

1. e4 {[%clk 1:25:41]}  c6 {[%clk 1:30:48]} 2. d4 {[%clk 1:25:49]}  d5 {[%clk 1:31:12]} 3. Nc3 {[%clk 1:25:43]}  dxe4 {[%clk 1:31:31]}
4. Nxe4 {[%clk 1:26:08]}  Nf6 {[%clk 1:31:39]} 5. Nxf6+ {[%clk 1:26:25]}  exf6 {[%clk 1:32:03]} 6. c3 {[%clk 1:26:50]}  Bd6 {[%clk 1:31:32]}
7. Bd3 {[%clk 1:26:55]}  O-O {[%clk 1:31:11]} 8. Ne2 {[%clk 1:27:13]}  Re8 {[%clk 1:30:33]} 9. O-O {[%clk 1:27:23]}  Nd7 {[%clk 1:25:32]}
10. Ng3 {[%clk 1:27:15]}  g6 {[%clk 1:25:04]} 11. Bh6 {[%clk 1:27:14]}  Bf8 {[%clk 1:21:20]} 12. Qd2 {[%clk 1:26:26]}  f5 {[%clk 1:20:30]}
13. Rae1 {[%clk 1:25:24]}  Bxh6 {[%clk 1:10:48]} 14. Qxh6 {[%clk 1:24:59]}  Nf8 {[%clk 1:09:08]} 15. Re3 {[%clk 1:22:38]}  c5 {[%clk 0:55:22]}
16. Rxe8 {[%clk 1:12:13]}  Qxe8 {[%clk 0:55:47]} 17. dxc5 {[%clk 1:12:11]}  Qc6 {[%clk 0:54:08]} 18. b4 {[%clk 1:09:03]}  Qd5 {[%clk 0:50:25]}
19. Rd1 {[%clk 1:01:49]}  Be6 {[%clk 0:44:15]} 20. Be2 {[%clk 0:54:23]}  Qxa2 {[%clk 0:43:01]} 21. Bf3 {[%clk 0:54:41]}  Bb3 {[%clk 0:38:54]}
22. Qd2 {[%clk 0:52:39]}  Qa6 {[%clk 0:36:41]} 23. Qd6 {[%clk 0:47:01]}  Qb5 {[%clk 0:30:51]} 24. Ra1 {[%clk 0:42:29]}  Ne6 {[%clk 0:26:19]}
25. Qe7 {[%clk 0:32:20]}  Nd8 {[%clk 0:24:51]} 26. Be2 {[%clk 0:24:37]}  Qc6 {[%clk 0:23:15]} 27. c4 {[%clk 0:25:02]}  Qe6 {[%clk 0:15:32]}
28. Qxe6 {[%clk 0:23:39]}  Nxe6 {[%clk 0:14:22]} 29. Bf3 {[%clk 0:22:50]}  a5 {[%clk 0:14:36]} 30. Bxb7 {[%clk 0:18:16]}  Rb8 {[%clk 0:14:41]}
31. c6 {[%clk 0:14:36]}  axb4 {[%clk 0:14:57]} 32. Nf1 {[%clk 0:06:51]}  f4 {[%clk 0:08:36]} 33. Nd2 {[%clk 0:03:38]}  Bc2 {[%clk 0:09:01]}
34. Re1 {[%clk 0:03:59]}  Rd8 {[%clk 0:08:31]} 35. Rxe6 {[%clk 0:03:23]}  Rxd2 {[%clk 0:08:47]} 36. g4 {[%clk 0:01:50]}  fxg3 {[%clk 0:01:10]}
37. hxg3 {[%clk 0:02:14]}  Bf5 {[%clk 0:00:50]} 38. Re3 {[%clk 0:02:16]}  Rc2 {[%clk 0:00:42]} 39. Ba6 {[%clk 0:02:28]}  Rc3 {[%clk 0:00:41]}
40. Re8+ {[%clk 0:01:35]}  Kg7 {[%clk 0:01:07]} 41. c7 {[%clk 0:01:00]}  Ra3 {[%clk 0:18:54]} 42. c8=Q {[%clk 0:08:45]}  Bxc8 {[%clk 0:19:18]}
43. Bxc8 {[%clk 0:09:03]}  b3 {[%clk 0:17:40]} 44. Bf5 {[%clk 0:07:57]}  gxf5 {[%clk 0:15:12]} 45. Rb8 {[%clk 0:08:24]}  Kf6 {[%clk 0:15:03]}
46. Rb5 {[%clk 0:08:30]}  f4 {[%clk 0:11:02]} 47. gxf4 {[%clk 0:08:41]}  Ra4 {[%clk 0:11:16]} 48. c5 {[%clk 0:08:13]}  Rc4 {[%clk 0:11:07]}
49. Rxb3 {[%clk 0:08:14]}  Rxc5 {[%clk 0:11:31]} 1/2-1/2

[Event "2026 European Womens Championship"]
[Site "Batumi, GE"]
[Date "2026.05.28"]
[Round "4"]
[White "Bulmaga, Irina"]
[Black "Chernyak, Viktoria"]
[Result "0-1"]
[Board "24"]
[TimeControl "5400+30"]
[WhiteFideId "13903063"]
[BlackFideId "24165956"]
[WhiteElo "2361"]
[BlackElo "2191"]
[WhiteTitle "IM"]
[BlackTitle "WGM"]
[WhiteClock "0:00:47"]
[BlackClock "0:04:38"]
[Variant "Standard"]

1. e4 {[%clk 1:30:54]}  c5 {[%clk 1:30:56]} 2. Nf3 {[%clk 1:31:10]}  Nc6 {[%clk 1:31:20]} 3. Bb5 {[%clk 1:31:28]}  d6 {[%clk 1:31:44]}
4. O-O {[%clk 1:31:38]}  Bd7 {[%clk 1:32:07]} 5. Re1 {[%clk 1:31:22]}  a6 {[%clk 1:32:32]} 6. Bf1 {[%clk 1:31:37]}  e5 {[%clk 1:31:54]}
7. c3 {[%clk 1:30:13]}  Be7 {[%clk 1:31:56]} 8. h3 {[%clk 1:27:40]}  g5 {[%clk 1:31:19]} 9. d4 {[%clk 1:27:01]}  h5 {[%clk 1:31:27]}
10. d5 {[%clk 1:21:59]}  Na7 {[%clk 1:27:07]} 11. Qd2 {[%clk 1:14:52]}  g4 {[%clk 1:26:13]} 12. Ng5 {[%clk 1:12:54]}  h4 {[%clk 1:08:51]}
13. hxg4 {[%clk 1:08:46]}  Bxg4 {[%clk 1:07:17]} 14. Be2 {[%clk 0:54:50]}  Bd7 {[%clk 0:57:37]} 15. Qe3 {[%clk 0:47:06]}  h3 {[%clk 0:52:29]}
16. Nxh3 {[%clk 0:43:51]}  Bh4 {[%clk 0:45:46]} 17. Na3 {[%clk 0:32:00]}  Nf6 {[%clk 0:44:06]} 18. Nc4 {[%clk 0:24:11]}  Bxh3 {[%clk 0:42:21]}
19. gxh3 {[%clk 0:24:39]}  b5 {[%clk 0:42:44]} 20. Nd2 {[%clk 0:24:42]}  Qd7 {[%clk 0:43:04]} 21. Qf3 {[%clk 0:21:29]}  Ke7 {[%clk 0:38:18]}
22. Qf5 {[%clk 0:20:52]}  Rag8+ {[%clk 0:37:57]} 23. Kf1 {[%clk 0:19:59]}  Qc7 {[%clk 0:29:14]} 24. Nf3 {[%clk 0:18:56]}  Rh5 {[%clk 0:28:15]}
25. Nxh4 {[%clk 0:18:38]}  Rxf5 {[%clk 0:28:41]} 26. Nxf5+ {[%clk 0:19:02]}  Kd7 {[%clk 0:27:05]} 27. Bf3 {[%clk 0:17:54]}  Nc8 {[%clk 0:26:14]}
28. h4 {[%clk 0:15:34]}  Qa5 {[%clk 0:21:12]} 29. Bd2 {[%clk 0:13:45]}  Ne7 {[%clk 0:14:58]} 30. Nxe7 {[%clk 0:11:49]}  Kxe7 {[%clk 0:15:26]}
31. b3 {[%clk 0:08:09]}  Ng4 {[%clk 0:12:10]} 32. Ke2 {[%clk 0:07:56]}  Nh2 {[%clk 0:12:11]} 33. h5 {[%clk 0:05:34]}  f5 {[%clk 0:08:17]}
34. exf5 {[%clk 0:05:16]}  Nxf3 {[%clk 0:08:32]} 35. Kxf3 {[%clk 0:05:43]}  Kf6 {[%clk 0:08:19]} 36. h6 {[%clk 0:01:52]}  Kxf5 {[%clk 0:06:05]}
37. Rg1 {[%clk 0:01:58]}  Qd8 {[%clk 0:05:48]} 38. Rg7 {[%clk 0:01:17]}  Qe8 {[%clk 0:00:40]} 39. Rag1 {[%clk 0:00:49]}  Qh5+ {[%clk 0:01:03]}
40. Kg2 {[%clk 0:00:34]}  Rxg7+ {[%clk 0:01:05]} 41. hxg7 {[%clk 0:00:55]}  Qg4+ {[%clk 0:01:11]} 42. Kf1 {[%clk 0:30:19]}  Qd1+ {[%clk 0:30:40]}
43. Be1 {[%clk 0:26:18]}  Qd3+ {[%clk 0:30:08]} 44. Kg2 {[%clk 0:26:37]}  Qxd5+ {[%clk 0:29:33]} 45. Kh2 {[%clk 0:24:15]}  Qg8 {[%clk 0:29:45]}
46. Rg3 {[%clk 0:24:44]}  c4 {[%clk 0:29:02]} 47. bxc4 {[%clk 0:23:55]}  bxc4 {[%clk 0:29:31]} 48. Bd2 {[%clk 0:23:19]}  d5 {[%clk 0:29:34]}
49. Bh6 {[%clk 0:19:08]}  Ke6 {[%clk 0:27:48]} 50. Be3 {[%clk 0:12:28]}  Kf5 {[%clk 0:27:22]} 51. Kg2 {[%clk 0:11:26]}  Ke4 {[%clk 0:27:07]}
52. Bh6 {[%clk 0:06:27]}  d4 {[%clk 0:27:23]} 53. Kf1 {[%clk 0:06:41]}  d3 {[%clk 0:26:27]} 54. a3 {[%clk 0:05:40]}  Kd5 {[%clk 0:23:46]}
55. Ke1 {[%clk 0:05:21]}  Kc6 {[%clk 0:22:44]} 56. Rg6+ {[%clk 0:04:58]}  Kb5 {[%clk 0:23:08]} 57. Be3 {[%clk 0:03:15]}  a5 {[%clk 0:23:07]}
58. Kd2 {[%clk 0:03:32]}  Ka4 {[%clk 0:22:59]} 59. Bc5 {[%clk 0:03:55]}  Kb3 {[%clk 0:23:09]} 60. Rb6+ {[%clk 0:03:27]}  Ka2 {[%clk 0:20:57]}
61. Rg6 {[%clk 0:03:56]}  Kb2 {[%clk 0:19:10]} 62. f3 {[%clk 0:02:28]}  Kb3 {[%clk 0:18:17]} 63. Rg4 {[%clk 0:02:30]}  Kb2 {[%clk 0:16:31]}
64. Bb6 {[%clk 0:01:55]}  Kxa3 {[%clk 0:16:41]} 65. Bxa5 {[%clk 0:02:15]}  Kb3 {[%clk 0:17:04]} 66. Bd8 {[%clk 0:01:19]}  e4 {[%clk 0:06:22]}
67. Rg6 {[%clk 0:00:49]}  e3+ {[%clk 0:05:49]} 68. Kd1 {[%clk 0:00:37]}  Kxc3 {[%clk 0:04:10]} 69. Bf6+ {[%clk 0:00:41]}  Kb3 {[%clk 0:04:27]}
70. Bd4 {[%clk 0:00:35]}  e2+ {[%clk 0:04:25]} 71. Kd2 {[%clk 0:00:47]}  e1=Q+ {[%clk 0:04:38]} 0-1

[Event "2026 European Womens Championship"]
[Site "Batumi, GE"]
[Date "2026.05.28"]
[Round "4"]
[White "Hryzlova, Sofiia"]
[Black "Milliet, Sophie"]
[Result "1/2-1/2"]
[Board "25"]
[TimeControl "5400+30"]
[WhiteFideId "14174669"]
[BlackFideId "623725"]
[WhiteElo "2226"]
[BlackElo "2361"]
[WhiteTitle "WIM"]
[BlackTitle "IM"]
[WhiteClock "0:29:36"]
[BlackClock "0:26:11"]
[Variant "Standard"]

1. d4 {[%clk 1:30:32]}  Nf6 {[%clk 1:30:53]} 2. c4 {[%clk 1:30:25]}  e6 {[%clk 1:31:17]} 3. Nc3 {[%clk 1:30:25]}  Bb4 {[%clk 1:31:40]}
4. e3 {[%clk 1:30:46]}  O-O {[%clk 1:31:52]} 5. Bd3 {[%clk 1:30:43]}  d5 {[%clk 1:32:06]} 6. cxd5 {[%clk 1:30:28]}  exd5 {[%clk 1:32:31]}
7. a3 {[%clk 1:30:53]}  Bd6 {[%clk 1:31:59]} 8. Qc2 {[%clk 1:31:14]}  a6 {[%clk 1:29:21]} 9. Nf3 {[%clk 1:25:42]}  Re8 {[%clk 1:26:28]}
10. b4 {[%clk 1:21:19]}  Nbd7 {[%clk 1:26:12]} 11. O-O {[%clk 1:04:36]}  Nf8 {[%clk 1:23:56]} 12. h3 {[%clk 1:04:31]}  c6 {[%clk 1:20:49]}
13. Bb2 {[%clk 1:02:49]}  Ng6 {[%clk 1:20:45]} 14. Rfe1 {[%clk 0:59:51]}  Bd7 {[%clk 1:16:19]} 15. Ng5 {[%clk 0:51:31]}  Nh5 {[%clk 0:53:20]}
16. Nf3 {[%clk 0:47:57]}  Nf6 {[%clk 0:53:37]} 17. Rad1 {[%clk 0:41:22]}  Rc8 {[%clk 0:52:51]} 18. e4 {[%clk 0:38:22]}  dxe4 {[%clk 0:53:14]}
19. Nxe4 {[%clk 0:38:46]}  Nxe4 {[%clk 0:53:24]} 20. Bxe4 {[%clk 0:39:10]}  Be6 {[%clk 0:52:18]} 21. Ne5 {[%clk 0:36:00]}  Qh4 {[%clk 0:42:22]}
22. Qc3 {[%clk 0:28:06]}  Nf4 {[%clk 0:31:46]} 23. Bc1 {[%clk 0:18:04]}  Nd5 {[%clk 0:28:05]} 24. Qc2 {[%clk 0:17:10]}  Nf6 {[%clk 0:20:07]}
25. Bf5 {[%clk 0:15:32]}  Qh5 {[%clk 0:15:56]} 26. Bd3 {[%clk 0:11:38]}  Bd5 {[%clk 0:14:09]} 27. Be2 {[%clk 0:07:18]}  Qh4 {[%clk 0:14:35]}
28. Nf3 {[%clk 0:07:18]}  Bxf3 {[%clk 0:12:32]} 29. Bxf3 {[%clk 0:07:43]}  Rxe1+ {[%clk 0:06:22]} 30. Rxe1 {[%clk 0:08:11]}  Qxd4 {[%clk 0:06:15]}
31. Kf1 {[%clk 0:07:47]}  Re8 {[%clk 0:04:15]} 32. Rxe8+ {[%clk 0:05:52]}  Nxe8 {[%clk 0:04:44]} 33. Bb2 {[%clk 0:06:03]}  Qf4 {[%clk 0:04:46]}
34. Be4 {[%clk 0:03:07]}  Nf6 {[%clk 0:03:35]} 35. Bxf6 {[%clk 0:02:39]}  Qxf6 {[%clk 0:04:04]} 36. Bxh7+ {[%clk 0:03:01]}  Kf8 {[%clk 0:01:50]}
37. Qf5 {[%clk 0:02:29]}  Qa1+ {[%clk 0:01:11]} 38. Ke2 {[%clk 0:02:57]}  Qb2+ {[%clk 0:01:27]} 39. Kf1 {[%clk 0:01:37]}  Qc1+ {[%clk 0:01:42]}
40. Ke2 {[%clk 0:02:02]}  Qb2+ {[%clk 0:01:50]} 41. Kf1 {[%clk 0:29:51]}  Qc1+ {[%clk 0:26:11]} 42. Ke2 {[%clk 0:29:36]} 1/2-1/2